Cogmind - Beta 13 @@@ ROGUE MODE // 2024.04.23 @ 19:42:30 Player: monistgf Result: Self-destructed Performance ------------- Evolutions (6) 3000 Regions Visited (15) 3000 Robots Destroyed (226) 1130 Value Destroyed (8824) 8824 Prototype IDs (6) 120 Alien Tech Used (0) 0 Bonus (3815) 3815 TOTAL SCORE: 19889 Bonus ------- High Alert Combat Kills 1311 Follower Combat Kills 2350 Network Hubs Disabled 200 Built Enhanced Grunts 300 A7 Reached Mainframe 300 Met R17 at Cetus 500 Friendly Fire -1146 Cogmind --------- Core Integrity 657/1150 Matter 300/300 Energy 100/100 System Corruption 6% Temperature Cool (76) Movement Walking (190) Ox1 Location -4/Factory Parts ------- > --- POWER (2) -------- (None) > --- PROPULSION (3) --- Armored Leg Myomer Leg > --- UTILITY (11) ----- High-capacity Storage Unit Enhanced Optical Array Layered Medium Armor Plating Improved Hacking Suite Improved Hacking Suite Improved Hacking Suite Improved Hacking Suite Improved System Shield > --- WEAPON (3) ------- Powered Hammer Ripper Ripper > --- INVENTORY (20) --- Reinforced Antimatter Reactor Centrium Wheel Improved Transmission Jammer Mass Driver Hardcell Cannon Heavy Gauss Cannon Heavy Missile Launcher Scythe Peak State ------------ > --- POWER ------------ Quantum Reactor Quantum Reactor > --- PROPULSION ------- Advanced Medium Treads Armored Huge Wheel > --- UTILITY ---------- High-capacity Storage Unit Enhanced Optical Array Melee Analysis Suite Microactuators Improved Actuator Array Centrium Medium Armor Plating Centrium Medium Armor Plating Advanced Shield Generator Improved Hacking Suite Improved Hacking Suite Improved Hacking Suite > --- WEAPON ----------- Ripper Ripper Ripper > --- INVENTORY -------- Particle Reactor Improved Treads Armored Leg Enhanced Flexi-carbon Leg Centrium Wheel Microactuators Microactuators Improved Transmission Jammer Layered Medium Armor Plating Centrium Medium Armor Plating Improved Hacking Suite Improved System Shield Mass Driver Heavy Missile Launcher Powered Hammer Scythe Ripper [Rating: 110] Favorites ----------- Power Improved Deuterium Engine Engine Improved Deuterium Engine Power Core Neutrino Core Reactor Quantum Reactor Propulsion Wheel Treads Light Treads Leg Myomer Leg Wheel Wheel Utility Microactuators Device Microactuators Storage High-capacity Storage Unit Processor Melee Analysis Suite Hackware Improved Hacking Suite Protection Layered Medium Armor Plating Weapon Ripper Energy Gun Gatling Laser Ballistic Gun Light Assault Rifle Ballistic Cannon Mass Driver Launcher Heavy Missile Launcher Impact Weapon Impact Mace Slashing Weapon Ripper Piercing Weapon Spear Build | -11 -10 -9 -8 -7 -7 -7 -6 -6 -6 -5 -5 -5 -5 -5 -4 ------- Run | Yrd Mat Mat Mat Fac Was Fac Fac Was Fac Fac Ext Cet Arc Hub Fac Slots Evolved 12 | . . 2 2 2 . . 2 . . 2 . . . . 2 Power 1 | . . . . . . . . . . 1 . . . . . Propulsion 1 | . . 1 . . . . . . . . . . . . . Utility 9 | . . . 2 2 . . 2 . . 1 . . . . 2 Weapon 1 | . . 1 . . . . . . . . . . . . . Parts Attached 281 | . 3 15 15 60 1 24 17 4 34 19 20 6 7 14 42 Power 31 | . . 2 1 4 . 2 1 1 4 2 4 2 2 2 4 Engine 16 | . . 2 1 3 . 2 . 1 4 2 1 . . . . Core 5 | . . . . 1 . . 1 . . . 3 . . . . Reactor 10 | . . . . . . . . . . . . 2 2 2 4 Propulsion 67 | . . 7 4 19 1 2 2 . 7 4 4 . . 5 12 Treads 20 | . . 5 1 6 1 . . . . . 1 . . 3 3 Leg 15 | . . . . 2 . . . . . 3 . . . 2 8 Wheel 32 | . . 2 3 11 . 2 2 . 7 1 3 . . . 1 Hover . | . . . . . . . . . . . . . . . . Flight . | . . . . . . . . . . . . . . . . Utility 108 | . 2 1 5 23 . 16 9 . 12 7 7 2 4 3 17 Device 51 | . . . . 13 . 7 4 . 6 5 4 . 3 2 7 Storage 7 | . 2 . 1 . . 2 1 . 1 . . . . . . Processor 10 | . . . 2 2 . 2 1 . 1 . 1 . . . 1 Hackware 6 | . . . . . . 1 . . . 1 . . 1 . 3 Protection 34 | . . 1 2 8 . 4 3 . 4 1 2 2 . 1 6 Artifact . | . . . . . . . . . . . . . . . . Weapon 75 | . 1 5 5 14 . 4 5 3 11 6 5 2 1 4 9 Energy Gun 4 | . 1 . . 3 . . . . . . . . . . . Energy Cannon . | . . . . . . . . . . . . . . . . Ballistic Gun 14 | . . 5 5 4 . . . . . . . . . . . Ballistic Cannon 2 | . . . . . . . . . . . 1 . . 1 . Launcher 14 | . . . . . . . 1 3 3 2 . 1 . 1 3 Special Weapon . | . . . . . . . . . . . . . . . . Impact Weapon 10 | . . . . 3 . . . . 3 1 2 . . . 1 Slashing Weapon 26 | . . . . 2 . 3 3 . 5 2 2 1 1 2 5 Piercing Weapon 5 | . . . . 2 . 1 1 . . 1 . . . . . Special Melee Weapon . | . . . . . . . . . . . . . . . . Unidentified Prototypes 3 | . . . . 1 . . . . . . . 1 . 1 . Parts Lost 73 | . . 2 2 17 2 1 2 . 11 5 2 1 . 2 26 Power 10 | . . . 1 2 . 1 . . 1 . . . . . 5 Propulsion 23 | . . 2 . 6 2 . . . 3 2 . . . 1 7 Utility 28 | . . . . 5 . . 1 . 6 1 2 . . 1 12 Weapon 12 | . . . 1 4 . . 1 . 1 2 . 1 . . 2 Highest Loss Streak 10 | . . 1 1 3 2 1 1 . 4 3 1 1 . 1 10 To Critical Strikes 1 | . . . . . . . . . . . . 1 . . . Average Slot Usage (%) 89 | . 88 88 98 94 63 71 90 86 92 93 93 94 93 93 88 Engine 5 | . 14 11 9 6 5 5 2 1 6 10 6 . . . . Core 1 | . . . . . . . 3 3 . . 4 9 . . . Reactor 2 | . . . . . . . . . . . . 1 11 11 8 Treads 3 | . . 16 10 8 5 . . . . . . . . 1 2 Leg 1 | . 28 . . . . . . . . 1 1 . . . 7 Wheel 10 | . . 15 16 13 11 11 13 13 12 9 8 11 11 9 2 Device 16 | . . . . 12 5 16 27 26 25 22 23 23 22 21 8 Storage 6 | . 16 11 9 7 5 3 6 6 6 5 5 5 5 5 5 Processor 7 | . . . 16 10 5 6 4 6 6 5 5 5 5 5 8 Hackware 6 | . . . . . . 6 6 6 6 10 11 11 11 11 20 Protection 7 | . . 3 9 13 7 6 5 2 5 5 5 5 5 6 6 Ballistic Gun 3 | . 14 24 26 7 . . . . . . . . . . . Impact Weapon 2 | . . . . 4 5 . . . 6 6 10 . . . 1 Slashing Weapon 8 | . . . . 3 5 11 12 2 11 8 1 16 17 16 13 Piercing Weapon 1 | . . . . . . 1 3 6 . 1 4 . . . . Naked Turns 192 | . . . . . 27 165 . . . . . . . . . Heaviest Build 118 | 11 50 35 57 94 93 74 80 77 93 105 105 109 111 118 116 Greatest Support 78 | 20 20 32 26 20 20 38 38 38 40 40 40 40 40 40 78 Greatest Overweight (x) 9 | . 2 2 2 9 6 1 2 2 2 3 3 2 2 4 6 Average Overweight (x) 2 | . . . 1 4 1 . 1 1 1 2 2 2 2 2 1 Largest Inventory Capacity 20 | . 20 15 20 20 20 20 20 20 20 20 20 20 20 20 20 Average Capacity 18 | . 10 15 19 20 16 11 20 20 20 20 20 20 20 20 20 Most Carried 20 | . 9 15 20 20 20 17 20 20 20 20 20 20 20 20 20 Average Carried 16 | . 7 9 18 19 16 8 18 19 17 19 19 19 19 19 12 Final Capacity 20 | 8 15 15 20 20 5 20 20 20 20 20 20 20 20 20 20 Final Carried 20 | 6 9 12 19 20 5 17 20 20 15 19 20 20 20 20 8 Class Distribution -------------------- 31% | Gladiator 16% | Hacker-Gladiator 14% | Scavenger-Gunner 14% | Commander-Gladiator 13% | Scavenger-Gladiator 5% | Mutant Dominant Class ---------------- Mutant | -10/Materials Scavenger-Tank | -9/Materials Scavenger-Gunner | -8/Materials Scavenger-Gladiator | -7/Factory Gladiator | -7/Waste Gladiator | -7/Factory Gladiator | -6/Factory Mutant | -6/Waste Gladiator | -6/Factory Hacker-Gladiator | -5/Factory Hacker-Gladiator | -5/Extension Commander-Gladiator | -5/Cetus Commander-Gladiator | -5/Archives Commander-Gladiator | -5/Hub_04(d) Wizard-Mutant | -4/Factory Resources | -11 -10 -9 -8 -7 -7 -7 -6 -6 -6 -5 -5 -5 -5 -5 -4 ----------- Run | Yrd Mat Mat Mat Fac Was Fac Fac Was Fac Fac Ext Cet Arc Hub Fac Matter Collected 4943 | 200 6 359 516 1066 63 420 178 44 859 161 308 98 92 175 398 Remotely . | . . . . . . . . . . . . . . . . Salvage Created 10187 | . 147 408 788 1632 . 675 869 547 1574 705 593 20 298 642 1289 Parts 512 | . 8 33 67 91 . 40 58 1 62 35 13 3 22 28 51 Haulers Intercepted 5 | . . . 1 . . 1 . . 1 1 . . . . 1 Recyclers Shooed 3 | . . . 1 2 . . . . . . . . . . . Parts Field Recycled . | . . . . . . . . . . . . . . . . Retrieved Matter . | . . . . . . . . . . . . . . . . Parts Self-Destructed . | . . . . . . . . . . . . . . . . Prevented . | . . . . . . . . . . . . . . . . Kills | -11 -10 -9 -8 -7 -7 -7 -6 -6 -6 -5 -5 -5 -5 -5 -4 ------- Run | Yrd Mat Mat Mat Fac Was Fac Fac Was Fac Fac Ext Cet Arc Hub Fac Combat Hostiles Destroyed 178 | . 3 13 18 42 . 10 15 3 24 10 10 . . 9 21 Melee 89 | . . . . 13 . 10 11 . 18 9 5 . . 7 16 Guns 61 | . 3 13 18 27 . . . . . . . . . . . AOE 15 | . . . . . . . 4 3 2 . . . . 2 4 Classes Destroyed 18 | . 1 3 5 6 . 1 . 1 . . . . . 1 . Worker 12 | . . . . 2 . 1 3 . 2 . . . . 4 . Builder 6 | . . . . . . 1 . . 4 . . . . . 1 Tunneler 5 | . . . 2 2 . . 1 . . . . . . . . Hauler 5 | . . . 1 . . 1 . . 1 1 . . . . 1 Recycler 6 | . . . 1 . . 1 . . 3 . . . . . 1 Operator 17 | . . . 1 1 . . . . . 2 1 . 9 . 3 Watcher 6 | . . . 1 1 . . 2 . 1 . . 1 . . . Swarmer 35 | . . 6 10 1 . 2 4 . 6 . . . . 2 4 Saboteur 2 | . . . . . . . . . . . . . . 1 1 Grunt 61 | . 3 4 4 12 . . 4 . 12 7 5 . . 3 7 Brawler 3 | . . . . 1 . . . . . 1 1 . . . . Duelist 3 | . . 1 . 1 . . . . . . . . . . 1 Sentry 27 | . . 2 4 6 . 4 5 . 1 . 4 . . 1 . Demolisher 1 | . . . . 1 . . . . . . . . . . . Hunter 10 | . . . . 2 . 1 1 . 1 . . . . 1 4 Programmer 21 | . . . . 6 . 3 1 . 4 2 . . . 1 4 Compactor 3 | . . . . . . . . 3 . . . . . . . Enhanced Grunt 2 | . . . . . . . . . . . . . . 2 . Assembled 12 | . . . . 12 . . . . . . . . . . . Thug 1 | . . . . . . . . . . . . . . 1 . Best Kill Streak 10 | . 2 9 9 10 . 2 7 3 5 6 5 1 6 4 5 Combat Bots Only 10 | . 2 9 9 10 . 2 5 3 5 6 5 . . 2 5 Max Kills in Single Turn 5 | . 1 1 1 2 . 1 3 1 2 1 1 1 1 3 5 Gunslinging 1 | . . . . 1 . . . . . . . . . . . Exploded 3 | . . . . . . . 2 1 1 . . . . 2 3 Melee 1 | . . . . 1 . 1 1 . 1 1 1 . . 1 1 Uniques/NPCs Destroyed . | . . . . . . . . . . . . . . . . Combat | -11 -10 -9 -8 -7 -7 -7 -6 -6 -6 -5 -5 -5 -5 -5 -4 -------- Run | Yrd Mat Mat Mat Fac Was Fac Fac Was Fac Fac Ext Cet Arc Hub Fac Hostile Shots Fired 1413 | . 11 44 80 317 29 149 134 1 167 44 47 24 2 31 333 Missed 422 | . 3 10 19 101 14 58 46 . 41 12 13 5 1 5 94 Damage Taken 13588 | . 99 434 734 2571 191 854 801 113 1764 510 431 313 33 301 4439 Core 1673 | . 16 67 49 176 66 275 102 8 236 64 44 55 . 22 493 Absorbed by Shields 1285 | . . . . . . . 14 . . 214 376 210 35 316 120 Redirected to Shielding 31 | . . . . . . . . . . . . . . 12 19 Ignored by Resistances 297 | . . . . 221 . 76 . . . . . . . . . Regen/Repaired (Parts) 58 | . . . . . . . . . . . 58 . . . . Core Remaining (%) 76 | 100 93 83 91 . . 26 . . 59 . . . . 81 . Volleys Fired 196 | . 9 28 61 64 . . 2 9 7 1 6 2 . 3 4 Largest 3 | . 2 3 3 3 . . 1 2 1 1 1 1 . 1 1 Hottest 171 | . 60 80 66 171 . . 39 78 39 39 57 39 . 57 39 Shots Fired 511 | . 18 79 182 189 . . 2 18 7 1 6 2 . 3 4 Gun 468 | . 18 79 182 189 . . . . . . . . . . . Cannon 7 | . . . . . . . . . . . 6 . . 1 . Launcher 36 | . . . . . . . 2 18 7 1 . 2 . 2 4 Special . | . . . . . . . . . . . . . . . . Kinetic 410 | . 9 66 182 146 . . . . . . 6 . . 1 . Thermal 58 | . 2 13 . 43 . . . . . . . . . . . Explosive 36 | . . . . . . . 2 18 7 1 . 2 . 2 4 Electromagnetic 7 | . 7 . . . . . . . . . . . . . . Robot Hit Streak 25 | . 7 12 25 14 . . 1 10 12 5 . . . 7 . Robot Miss Streak 5 | . 1 2 2 5 . . 1 1 1 . . . . . . Penetration Max . | . . . . . . . . . . . . . . . . Secondary Targets 5 | . . . 1 4 . . . . . . . . . . . Max Gunslinging Chain 1 | . . . 1 1 . . . . . . . . . . . Shots Hit Robots 756 | . 13 50 132 182 . 29 41 16 88 52 35 . 18 27 73 Core Hits 404 | . 8 26 50 120 . 15 23 10 44 18 9 6 8 28 39 Critical Kills 3 | . . . . . . . . . . 1 2 . . . . Critical Parts Destroyed 19 | . . . 1 1 . . . . 4 2 8 . . . 3 Critical Strikes 55 | . . . 1 4 . 2 5 . 15 5 10 . 1 2 10 Destroy 1 | . . . 1 . . . . . . . . . . . . Smash 21 | . . . . 1 . . . . 4 3 10 . . . 3 Sever 32 | . . . . 3 . 2 5 . 10 2 . . 1 2 7 Impale 1 | . . . . . . . . . 1 . . . . . . Melee Attacks 620 | . . . . 59 . 67 61 . 120 84 56 . 24 39 110 Impact 147 | . . . . 14 . . . . 32 41 46 . . . 14 Slashing 442 | . . . . 45 . 63 52 . 82 39 2 . 24 39 96 Piercing 31 | . . . . . . 4 9 . 6 4 8 . . . . Sneak Attacks 41 | . . . . 3 . 6 5 . 4 4 1 . 12 3 3 Combat Hostiles 1 | . . . . . . . 1 . . . . . . . . Follow-up Attacks 120 | . . . . 3 . 4 10 . 29 20 12 . 4 11 27 Damage Inflicted 29528 | . 143 435 1447 4343 . 1857 2335 3034 4537 2377 1418 211 1446 1958 3987 Guns 4565 | . 143 435 1447 2540 . . . . . . . . . . . Cannons . | . . . . . . . . . . . . . . . . Explosions 6557 | . . . . . . . 400 3034 846 61 . 211 . 930 1075 Melee 18391 | . . . . 1803 . 1842 1935 . 3691 2316 1418 . 1446 1028 2912 Ramming 15 | . . . . . . 15 . . . . . . . . . Kinetic 3652 | . 52 334 1447 1819 . . . . . . . . . . . Thermal 1337 | . 23 101 . 721 . . . . . . . . . . 492 Explosive 5547 | . . . . . . . 400 3034 846 61 . 211 . 412 583 Electromagnetic 586 | . 68 . . . . . . . . . . . . 518 . Impact 4097 | . . . . 363 . . . . 949 952 1252 . . . 581 Slashing 13870 | . . . . 1440 . 1819 1878 . 2619 1272 37 . 1446 1028 2331 Piercing 424 | . . . . . . 23 57 . 123 92 129 . . . . Highest Corruption 15 | . . . . 15 15 15 . . 5 6 9 9 9 4 6 Average Corruption 6 | . . . . 6 15 7 . . 4 4 7 9 6 3 5 Corruption Purged 27 | . . . . 4 . 13 . . . 1 . . 9 . . Corruption Blocked . | . . . . . . . . . . . . . . . . Effects 235 | . . . . 62 6 56 . . 25 7 34 13 7 6 19 Message Errors 59 | . . . . 14 1 11 . . 6 2 10 1 . 5 9 Matter Fused 58 | . . . . 15 3 22 . . 3 1 5 4 1 . 4 Heat Flow Errors 32 | . . . . 11 1 6 . . 5 1 5 . 2 . 1 Energy Discharges 28 | . . . . 8 . 6 . . 5 . 4 1 1 . 3 Parts Rejected 3 | . . . . 1 . . . . 1 . 1 . . . . Parts Fused 3 | . . . . . . . . . . 1 2 . . . . Data Loss (minor) 23 | . . . . 4 . 6 . . 3 . 3 4 2 . 1 Data Loss (major) 15 | . . . . 3 1 1 . . 2 2 3 2 . . 1 Misfires 1 | . . . . 1 . . . . . . . . . . . Alerts 9 | . . . . 3 . 2 . . . . 1 1 1 1 . Misdirections 2 | . . . . . . 2 . . . . . . . . . Weapon Failures 2 | . . . . 2 . . . . . . . . . . . Overload Shots . | . . . . . . . . . . . . . . . . Overflow Damage 2340 | . . . . 225 . 200 209 . 396 107 329 . 389 41 444 Projectiles . | . . . . . . . . . . . . . . . . Explosions 64 | . . . . . . . 10 . 6 . . . . 5 43 Melee 2276 | . . . . 225 . 200 199 . 390 107 329 . 389 36 401 Knockbacks 16 | . . . . 2 . . . . 5 3 1 . . . 5 Impact 16 | . . . . 2 . . . . 5 3 1 . . . 5 Kinetic . | . . . . . . . . . . . . . . . . Secondary . | . . . . . . . . . . . . . . . . Self-Inflicted Damage 194 | . . . . . . 7 . 71 14 . . . . 100 2 Shots 9 | . . . . . . . . 6 1 . . . . 1 1 Rammed 1 | . . . . . . 1 . . . . . . . . . Targets Rammed 1 | . . . . . . 1 . . . . . . . . . Kicked . | . . . . . . . . . . . . . . . . Crushed . | . . . . . . . . . . . . . . . . Highest Temperature 344 | . 70 92 52 238 166 270 1 . 242 167 272 . 215 20 344 Average Temperature 61 | . 37 26 17 59 115 105 1 . 87 93 103 . 99 11 123 Received Heat Transfer 2838 | . 54 144 216 615 18 108 231 . 366 111 97 16 8 58 796 Siege Activations . | . . . . . . . . . . . . . . . . Robots Corrupted 1 | . . . . . . . . . . . . . . 1 . Combat Hostiles . | . . . . . . . . . . . . . . . . Parts Fried 19 | . . . . 3 . . . . 4 1 3 . . 4 4 Impact Corruptions 42 | . . . . 4 . . . . 13 6 10 . . . 9 Robots Melted . | . . . . . . . . . . . . . . . . Combat Hostiles . | . . . . . . . . . . . . . . . . Parts Melted 1 | . . . . 1 . . . . . . . . . . . Heat Transferred 2154 | . 50 225 . 1579 . . . . . . . . . . 300 Parts Sabotaged 3 | . . . . . . . . . . . . . . 3 . Parts Stolen . | . . . . . . . . . . . . . . . . Parts Stripped . | . . . . . . . . . . . . . . . . Power Chain Reactions . | . . . . . . . . . . . . . . . . Alert | -11 -10 -9 -8 -7 -7 -7 -6 -6 -6 -5 -5 -5 -5 -5 -4 ------- Run | Yrd Mat Mat Mat Fac Was Fac Fac Was Fac Fac Ext Cet Arc Hub Fac Peak Influence 1419 | . 110 481 633 694 235 252 489 155 465 410 373 420 320 1419 1272 Initial 695 | . . 46 202 287 220 150 104 81 108 115 200 104 88 42 695 Average 366 | . 65 297 312 374 223 167 318 114 242 217 241 282 242 715 1076 Maximum Alert Level 4 | . . 2 2 2 1 1 2 . 2 2 1 2 1 4 4 Low Security (%) 29 | . 100 36 4 20 . 66 13 100 32 44 31 6 31 13 . Level 1 43 | . . 21 80 36 100 33 70 . 63 55 68 82 68 5 . Level 2 15 | . . 41 14 42 . . 16 . 4 . . 10 . 21 12 Level 3 5 | . . . . . . . . . . . . . . 47 22 Level 4 5 | . . . . . . . . . . . . . . 13 65 Level 5 . | . . . . . . . . . . . . . . . . High Security . | . . . . . . . . . . . . . . . . Max Security . | . . . . . . . . . . . . . . . . Squads Dispatched 47 | . 1 1 . 13 . 7 2 . 6 3 3 . . 6 5 Investigation 4 | . 1 . . 3 . . . . . . . . . . . Extermination 14 | . . . . 4 . 3 . . 3 1 . . . 1 2 Reinforcement 20 | . . 1 . 3 . 4 2 . 3 1 3 . . 1 2 Assault 6 | . . . . . . . . . . 1 . . . 4 1 Garrison 3 | . . . . 3 . . . . . . . . . . . Intercept . | . . . . . . . . . . . . . . . . Searches Triggered . | . . . . . . . . . . . . . . . . Construction Impeded 4 | . . . . . . . . . 1 . 2 . . . 1 Haulers Reinforced 2 | . . . . . . . . . 1 1 . . . . . Active Scanning Responses . | . . . . . . . . . . . . . . . . Cargo Convoy Interrupts 1 | . . . . 1 . . . . . . . . . . . Stealth | -11 -10 -9 -8 -7 -7 -7 -6 -6 -6 -5 -5 -5 -5 -5 -4 --------- Run | Yrd Mat Mat Mat Fac Was Fac Fac Was Fac Fac Ext Cet Arc Hub Fac Distress Signals 22 | . . 1 2 4 2 1 2 . 2 1 . 2 . 1 4 Communications Jammed . | . . . . . . . . . . . . . . . . Distress Signals . | . . . . . . . . . . . . . . . . Times Spotted 363 | . 5 20 31 59 7 31 25 6 37 25 25 9 8 35 40 Peak Tracking Total 10 | . 3 10 7 7 6 8 4 4 5 6 5 5 3 6 7 Tactical Retreats 29 | . . 4 2 4 . 4 2 1 2 5 1 . . 1 3 Traps | -11 -10 -9 -8 -7 -7 -7 -6 -6 -6 -5 -5 -5 -5 -5 -4 ------- Run | Yrd Mat Mat Mat Fac Was Fac Fac Was Fac Fac Ext Cet Arc Hub Fac Traps Triggered 16 | . 1 . . 4 . 2 4 . 1 1 2 . . . 1 Indirectly . | . . . . . . . . . . . . . . . . Trap Hack Attempts . | . . . . . . . . . . . . . . . . Triggered . | . . . . . . . . . . . . . . . . Disarmed . | . . . . . . . . . . . . . . . . Reprogrammed . | . . . . . . . . . . . . . . . . Reused . | . . . . . . . . . . . . . . . . Traps Extracted . | . . . . . . . . . . . . . . . . Installed . | . . . . . . . . . . . . . . . . Triggered 6 | . . . . 6 . . . . . . . . . . . Machines | -11 -10 -9 -8 -7 -7 -7 -6 -6 -6 -5 -5 -5 -5 -5 -4 ---------- Run | Yrd Mat Mat Mat Fac Was Fac Fac Was Fac Fac Ext Cet Arc Hub Fac Machines Disabled 23 | . . . . . . . 1 . . 3 1 . 3 7 8 Max in Single Turn 5 | . . . . . . . 1 . . 2 1 . . 5 5 Garrison Access 3 | . . . . . . . 1 . . 1 . . . 1 . Network Hub 1 | . . . . . . . . . . . . . . 1 . Machines Repaired . | . . . . . . . . . . . . . . . . Machines Dismantled . | . . . . . . . . . . . . . . . . Machines Sabotaged . | . . . . . . . . . . . . . . . . Overloaded Fab Kills . | . . . . . . . . . . . . . . . . Hacking | -11 -10 -9 -8 -7 -7 -7 -6 -6 -6 -5 -5 -5 -5 -5 -4 --------- Run | Yrd Mat Mat Mat Fac Was Fac Fac Was Fac Fac Ext Cet Arc Hub Fac Machines Accessed 40 | . . . 1 3 . 6 6 . 3 4 11 1 . 4 1 Terminals 32 | . . . 1 3 . 4 4 . 3 3 10 1 . 3 . Fabricators 4 | . . . . . . 2 1 . . . . . . . 1 Repair Stations 1 | . . . . . . . . . . . 1 . . . . Recycling Units . | . . . . . . . . . . . . . . . . Scanalyzers 1 | . . . . . . . . . . 1 . . . . . Garrison Access 2 | . . . . . . . 1 . . . . . . 1 . Total Hacks 97 | . . . 2 5 . 10 12 . 18 9 27 5 . 7 2 Successful 43 | . . . 1 1 . 2 6 . 9 4 13 1 . 4 2 Failed 54 | . . . 1 4 . 8 6 . 9 5 14 4 . 3 . Catastrophic 17 | . . . 1 4 . 2 2 . 2 1 3 . . 2 . Database Lockouts . | . . . . . . . . . . . . . . . . Manual 54 | . . . 1 4 . 6 5 . 14 5 14 1 . 3 1 Terminals 83 | . . . 2 5 . 6 8 . 18 8 25 5 . 6 . Fabricators 8 | . . . . . . 4 2 . . . . . . . 2 Repair Stations 2 | . . . . . . . . . . . 2 . . . . Recycling Units . | . . . . . . . . . . . . . . . . Scanalyzers 1 | . . . . . . . . . . 1 . . . . . Garrison Access 3 | . . . . . . . 2 . . . . . . 1 . Terminal Hacks 26 | . . . 1 1 . 1 2 . 7 2 9 1 . 2 . Prototype ID Bank 1 | . . . 1 . . . . . . . . . . . . Open Door 3 | . . . . . . . . . . . 2 1 . . . Branch Access Points 3 | . . . . 1 . . . . 1 1 . . . . . Alert Level 6 | . . . . . . . . . 3 1 1 . . 1 . Unreport Threat 3 | . . . . . . . 1 . 1 . 1 . . . . Locate Traps 5 | . . . . . . 1 1 . 1 . 1 . . 1 . Recall Reinforcements 3 | . . . . . . . . . . . 3 . . . . Zone Layout 2 | . . . . . . . . . 1 . 1 . . . . Fabricator Hacks 3 | . . . . . . 1 1 . . . . . . . 1 Network Status 3 | . . . . . . 1 1 . . . . . . . 1 Repair Station Hacks 2 | . . . . . . . . . . . 2 . . . . Scan Component 1 | . . . . . . . . . . . 1 . . . . Repair 1 | . . . . . . . . . . . 1 . . . . Recycling Unit Hacks . | . . . . . . . . . . . . . . . . Scanalyzer 1 | . . . . . . . . . . 1 . . . . . Insert Component 1 | . . . . . . . . . . 1 . . . . . Garrison Access Hacks 2 | . . . . . . . 1 . . . . . . 1 . Seal Access 2 | . . . . . . . 1 . . . . . . 1 . Unauthorized Hacks 8 | . . . . . . . 2 . 1 1 2 . . 1 1 Terminals 6 | . . . . . . . 1 . 1 1 2 . . 1 . Botnet 6 | . . . . . . . 1 . 1 1 2 . . 1 . Fabricators 2 | . . . . . . . 1 . . . . . . . 1 Report 2 | . . . . . . . 1 . . . . . . . 1 Repair Stations . | . . . . . . . . . . . . . . . . Recycling Units . | . . . . . . . . . . . . . . . . Scanalyzers . | . . . . . . . . . . . . . . . . Garrison Access . | . . . . . . . . . . . . . . . . Data Cores Recovered 4 | . . . 1 . . . . . . 2 . . . . 1 Used 2 | . . . 1 . . . . . . 1 . . . . . Hacking Detections 37 | . . . 1 3 . 6 5 . 3 4 10 1 . 3 1 Full Trace Events 1 | . . . . 1 . . . . . . . . . . . Feedback Events . | . . . . . . . . . . . . . . . . Feedback Blocked . | . . . . . . . . . . . . . . . . Robot Schematics Acquired . | . . . . . . . . . . . . . . . . Robots Built . | . . . . . . . . . . . . . . . . Authchips . | . . . . . . . . . . . . . . . . Time . | . . . . . . . . . . . . . . . . Total Robot Build Rating . | . . . . . . . . . . . . . . . . Part Schematics Acquired . | . . . . . . . . . . . . . . . . Parts Built . | . . . . . . . . . . . . . . . . Authchips . | . . . . . . . . . . . . . . . . Time . | . . . . . . . . . . . . . . . . Total Part Build Rating . | . . . . . . . . . . . . . . . . Parts Repaired 1 | . . . . . . . . . . . 1 . . . . Time 22 | . . . . . . . . . . . 22 . . . . Parts Recycled . | . . . . . . . . . . . . . . . . Recycled Matter . | . . . . . . . . . . . . . . . . Retrieved Matter . | . . . . . . . . . . . . . . . . Retrieved Components . | . . . . . . . . . . . . . . . . Parts Scanalyzed . | . . . . . . . . . . . . . . . . Part Schematics Acquired . | . . . . . . . . . . . . . . . . Parts Damaged . | . . . . . . . . . . . . . . . . Bothacking | -11 -10 -9 -8 -7 -7 -7 -6 -6 -6 -5 -5 -5 -5 -5 -4 ------------ Run | Yrd Mat Mat Mat Fac Was Fac Fac Was Fac Fac Ext Cet Arc Hub Fac Used RIF Installer . | . . . . . . . . . . . . . . . . Robots Hacked . | . . . . . . . . . . . . . . . . Non-combat . | . . . . . . . . . . . . . . . . Combat . | . . . . . . . . . . . . . . . . Robot Hacks Applied . | . . . . . . . . . . . . . . . . Relay Couplers Released 1 | . . . . . . . . . . 1 . . . . . Machine Destruction 1 | . . . . . . . . . . 1 . . . . . Fabnet Peak Effective % . | . . . . . . . . . . . . . . . . Robots Rewired 12 | . . . . . . . . . . . 11 1 . . . Allies Hacked 1 | . . . . . . . . . . . . . . 1 . Hacks Repelled . | . . . . . . . . . . . . . . . . Allies | -11 -10 -9 -8 -7 -7 -7 -6 -6 -6 -5 -5 -5 -5 -5 -4 -------- Run | Yrd Mat Mat Mat Fac Was Fac Fac Was Fac Fac Ext Cet Arc Hub Fac Total Allies 22 | . . . . . . . . . . . 16 6 . . . Largest Group 13 | . . . . . . . . . . . 8 13 12 8 1 Highest-Rated Group 822 | . . . . . . . . . . . 345 822 786 505 96 Highest-Rated Ally 159 | . . . . . . . . . . . 159 159 159 96 96 Total Orders . | . . . . . . . . . . . . . . . . Ally Attacks 264 | . . . . . . . . . . . 71 44 48 84 17 Total Damage 7795 | . . . . . . . . . . . 1226 1574 1536 2901 558 Kills 57 | . . . . . . . . . . . 13 8 4 25 7 Allies Corrupted 1 | . . . . . . . . . . . . . . 1 . Allies Melted . | . . . . . . . . . . . . . . . . Intel | -11 -10 -9 -8 -7 -7 -7 -6 -6 -6 -5 -5 -5 -5 -5 -4 ------- Run | Yrd Mat Mat Mat Fac Was Fac Fac Was Fac Fac Ext Cet Arc Hub Fac Robot Analysis Total . | . . . . . . . . . . . . . . . . Derelict Logs Recovered . | . . . . . . . . . . . . . . . . Drone Launches . | . . . . . . . . . . . . . . . . Drone Recoveries . | . . . . . . . . . . . . . . . . Exploration | -11 -10 -9 -8 -7 -7 -7 -6 -6 -6 -5 -5 -5 -5 -5 -4 ------------- Run | Yrd Mat Mat Mat Fac Was Fac Fac Was Fac Fac Ext Cet Arc Hub Fac Turns Passed 13883 | . 252 349 747 2866 132 1799 937 170 1314 886 1235 432 538 1244 982 Spaces Moved 7746 | 1 138 180 404 1428 132 1280 613 122 800 421 598 174 240 761 454 Core 150 | . . . . . 54 96 . . . . . . . . . Treads . | . . . . . . . . . . . . . . . . Legs 367 | 1 138 . . . . . . . . . . . . . 228 Wheels 7229 | . . 180 404 1428 78 1184 613 122 800 421 598 174 240 761 226 Hover . | . . . . . . . . . . . . . . . . Flight . | . . . . . . . . . . . . . . . . Fastest Speed 50 | 120 120 100 105 125 50 50 105 105 105 120 120 125 125 125 120 Average Speed 124 | 120 143 111 113 142 96 104 106 108 119 127 133 125 125 130 153 Slowest Speed 260 | 120 260 130 130 215 170 115 120 120 130 145 145 125 125 160 260 Overloaded Moves . | . . . . . . . . . . . . . . . . Propulsion Burnouts . | . . . . . . . . . . . . . . . . Robots Hopped . | . . . . . . . . . . . . . . . . Cave-ins Triggered 1 | . . . . 1 . . . . . . . . . . . Exploration Rate (%) 42 | 2 31 25 45 44 79 42 19 70 23 13 68 67 87 50 14 Regions Visited 15 Branch Regions 4 Pre-discovered Areas . | . . . . . . . . . . . . . . . . Known Exits Taken 1 | . . . . . . . . . . 1 . . . . . Unknown Exits Taken 10 | 1 1 1 1 . . 1 . . 1 . 1 1 1 1 . Scrap Searched . | . . . . . . . . . . . . . . . . Spaces Dug 89 | . . . . 12 . 20 7 . 8 8 6 . . 5 23 Terrain Destroyed 571 | . . . . 12 . 20 26 148 46 15 13 36 . 190 65 Melee 66 | . . . . 12 . 20 7 . 8 8 4 . . 5 2 Projectile 9 | . . . . . . . . . . . 9 . . . . AOE 496 | . . . . . . . 19 148 38 7 . 36 . 185 63 Terrain Rammed . | . . . . . . . . . . . . . . . . Walls Destroyed . | . . . . . . . . . . . . . . . . Machines Disabled . | . . . . . . . . . . . . . . . . Actions | -11 -10 -9 -8 -7 -7 -7 -6 -6 -6 -5 -5 -5 -5 -5 -4 --------- Run | Yrd Mat Mat Mat Fac Was Fac Fac Was Fac Fac Ext Cet Arc Hub Fac Total 11165 | . 175 276 585 2050 136 1677 877 138 1061 694 1003 388 467 983 655 Wait 2126 | . 22 41 74 379 1 260 145 1 135 185 250 198 195 169 71 Move 7733 | . 137 179 403 1428 131 1279 613 121 799 420 597 173 239 760 454 Hop . | . . . . . . . . . . . . . . . . Pick Up 148 | . 2 6 15 36 1 26 15 . 6 13 13 1 3 5 6 Fast Attach 55 | . 1 4 3 5 . 14 2 1 1 3 5 1 3 6 6 Attach 90 | . . 2 2 21 1 7 5 1 14 8 2 1 . 3 23 Detach 20 | . 1 . 1 3 . 4 2 2 . . 1 1 . 1 4 Swap 136 | . 2 9 10 34 . 3 10 2 19 8 13 4 4 5 13 Drop 135 | . 1 7 16 32 2 12 18 1 5 3 19 4 8 6 1 Fire 196 | . 9 28 61 64 . . 2 9 7 1 6 2 . 3 4 Melee 422 | . . . . 48 . 55 42 . 75 53 36 . 15 25 73 Ram 1 | . . . . . . 1 . . . . . . . . . Kick . | . . . . . . . . . . . . . . . . Crush . | . . . . . . . . . . . . . . . . Escape Stasis 55 | . . . . . . 16 23 . . . 16 . . . . Rewire 48 | . . . . . . . . . . . 45 3 . . . Trap . | . . . . . . . . . . . . . . . . Miscellaneous . | . . . . . . . . . . . . . . . . Route ------- -11/Scrapyard -10/Materials -9/Materials -8/Materials -7/Factory (discovered 2 exits: *Low x2) -7/Waste -7/Factory (discovered 3 exits: *Fac x2 / *Low) -6/Factory -6/Waste -6/Factory (discovered 3 exits: *Fac / Low x2) -5/Factory (discovered 4 exits: *Upp x2 / *Ext x2) -5/Extension (discovered 2 exits: *Fac / *Cet) -5/Cetus (discovered 2 exits: *Fac / [*Arc]) -5/Archives (discovered 3 exits: *Fac / *Hub x2) -5/Hub_04(d) (discovered 2 exits: *Fac x2) -4/Factory History --------- Turn | Location | Event 1 | -11/Scrapyard | Discovered new exit (range 0) 1 | -11/Scrapyard | Entered Materials 143 | -10/Materials | Discovered new exit (range 16) 253 | -10/Materials | Entered another Materials area 253 | -9/Materials | Evolved 2 slots: Propulsion x1, Weapon x1 315 | -9/Materials | Build established: Mutant 509 | -9/Materials | Destroyed 9 combat bots 594 | -9/Materials | Discovered new exit (range 7) 602 | -9/Materials | Entered another Materials area 602 | -8/Materials | Evolved 2 slots: Utility x2 974 | -8/Materials | Build established: Scavenger-Gunner 1317 | -8/Materials | Destroyed 9 combat bots 1342 | -8/Materials | Discovered new exit (range 4) 1349 | -8/Materials | Entered Factory 1349 | -7/Factory | Evolved 2 slots: Utility x2 1366 | -7/Factory | Discovered new exit (range 14) 1823 | -7/Factory | Assembled infested ambush trap array 1898 | -7/Factory | Destroyed 10 combat bots 2579 | -7/Factory | Garrison activated, responded to threat 3114 | -7/Factory | Build established: Scavenger-Gladiator 3128 | -7/Factory | Cargo convoy interrupted 3347 | -7/Factory | Discovered new exit (range 8) 3670 | -7/Factory | Identified exit to Lower Caves 4025 | -7/Factory | Crushed by falling debris 4025 | -7/Factory | System corruption reached 10% 4056 | -7/Factory | Lost 3 parts (1n2u) 4215 | -7/Factory | Sucked down chute 4215 | -7/Factory | Entered Waste 4261 | -7/Waste | Spotted C-40 Crusher 4262 | -7/Waste | Spotted C-40 Crusher 4272 | -7/Waste | Spotted C-40 Crusher 4272 | -7/Waste | Spotted C-40 Crusher 4280 | -7/Waste | Spotted C-40 Crusher 4301 | -7/Waste | Spotted C-40 Crusher 4316 | -7/Waste | Crushed by Compactor (1 part destroyed, 2 dropped) 4319 | -7/Waste | Crushed by Compactor (1 part destroyed, 1 dropped) 4320 | -7/Waste | Released all parts (6) 4329 | -7/Waste | Discovered new exit (range 16) 4347 | -7/Waste | Entered Factory 4483 | -7/Factory | Core integrity fell below 50% 4550 | -7/Factory | Discovered new exit (range 15) 4755 | -7/Factory | Discovered exit to Lower Caves (range 10) 4812 | -7/Factory | Build established: Gladiator 6139 | -7/Factory | Discovered new exit (range 9) 6146 | -7/Factory | Entered another Factory area 6146 | -6/Factory | Evolved 2 slots: Utility x2 6229 | -6/Factory | Spotted B-75 Beast 7083 | -6/Factory | Sucked down chute 7083 | -6/Factory | Entered Waste 7104 | -6/Waste | Spotted C-40 Crusher 7137 | -6/Waste | Spotted C-40 Crusher 7143 | -6/Waste | Spotted C-40 Crusher 7147 | -6/Waste | Destroyed C-40 Crusher 7147 | -6/Waste | Spotted C-40 Crusher 7157 | -6/Waste | Destroyed C-40 Crusher 7157 | -6/Waste | Spotted C-40 Crusher 7164 | -6/Waste | Destroyed C-40 Crusher 7194 | -6/Waste | Crushed by Compactor (0 parts destroyed, 2 dropped) 7235 | -6/Waste | Spotted C-40 Crusher 7244 | -6/Waste | Discovered new exit (range 10) 7253 | -6/Waste | Entered Factory 7392 | -6/Factory | Lost 4 parts (2n1u1w) 7554 | -6/Factory | Identified exit to Lower Caves 8507 | -6/Factory | Lost 4 parts (1n3u) 8552 | -6/Factory | Discovered new exit (range 9) 8567 | -6/Factory | Entered another Factory area 8567 | -5/Factory | Evolved 2 slots: Power x1, Utility x1 8940 | -5/Factory | Build established: Hacker-Gladiator 8998 | -5/Factory | Identified exit to Upper Caves 8998 | -5/Factory | Identified exit to Extension 9254 | -5/Factory | Lost 3 parts (1n2w) 9453 | -5/Factory | Entered Extension 9907 | -5/Extension | Rescued a captive Derelict 9909 | -5/Extension | Rescued a captive Derelict 10037 | -5/Extension | Lost 5 allies 10189 | -5/Extension | Rescued a captive Derelict 10190 | -5/Extension | Rescued a captive Derelict 10434 | -5/Extension | Repaired Arm. Huge Wheel 10602 | -5/Extension | Rescued A7 10660 | -5/Extension | Discovered new exit (range 10) 10661 | -5/Extension | Discovered new exit (range 6) 10688 | -5/Extension | Entered Cetus 10688 | -5/Cetus | Accompanied by 8 allies (A7) 10693 | -5/Cetus | Acquired a Cetus Manufacturing Module code from A7 10708 | -5/Cetus | Spotted Cetus Guard 10708 | -5/Cetus | Spotted Cetus Guard 10712 | -5/Cetus | Allies destroyed Cetus Guard 10716 | -5/Cetus | Spotted Cetus Guard 10717 | -5/Cetus | Allies destroyed Cetus Guard 10718 | -5/Cetus | Spotted Cetus Guard 10725 | -5/Cetus | Allies destroyed Cetus Guard 10727 | -5/Cetus | Allies destroyed Cetus Guard 10794 | -5/Cetus | Escorted A7 to Cetus Mainframe 10806 | -5/Cetus | Started Cetus Manufacturing Module 10821 | -5/Cetus | Discovered new exit (range 15) 10831 | -5/Cetus | Manufactured an Enhanced Grunt 10856 | -5/Cetus | Manufactured an Enhanced Grunt 10856 | -5/Cetus | Build established: Commander-Gladiator 10881 | -5/Cetus | Manufactured an Enhanced Grunt 10906 | -5/Cetus | Manufactured an Enhanced Grunt 10931 | -5/Cetus | Manufactured an Enhanced Grunt 11025 | -5/Cetus | Spotted Cetus Guard 11025 | -5/Cetus | Spotted Cetus Guard 11027 | -5/Cetus | Spotted Cetus Guard 11030 | -5/Cetus | Spotted Cetus Guard 11032 | -5/Cetus | Allies destroyed Cetus Guard 11035 | -5/Cetus | Discovered new exit (range 16) 11037 | -5/Cetus | Allies destroyed Cetus Guard 11043 | -5/Cetus | Allies destroyed Cetus Guard 11045 | -5/Cetus | Rewired Cetus Guard 11046 | -5/Cetus | Met Revision 17 11120 | -5/Cetus | Entered Archives 11120 | -5/Archives | Accompanied by 13 allies (A7) 11125 | -5/Archives | Received a hacking code to weaken MAIN.C 11180 | -5/Archives | Lost 4 allies 11201 | -5/Archives | Discovered new exit (range 16) 11219 | -5/Archives | Discovered new exit (range 16) 11292 | -5/Archives | Discovered new exit (range 14) 11658 | -5/Archives | Entered Hub_04(d) 11658 | -5/Hub_04(d) | Accompanied by 8 allies 11882 | -5/Hub_04(d) | Discovered new exit (range 8) 11958 | -5/Hub_04(d) | First assault squad dispatched 11963 | -5/Hub_04(d) | Discovered new exit (range 15) 12737 | -5/Hub_04(d) | Network Hub disabled 12792 | -5/Hub_04(d) | Build established: Scavenger-Gladiator 12902 | -5/Hub_04(d) | Entered Factory 12902 | -4/Factory | Accompanied by 1 ally 12902 | -4/Factory | Evolved 2 slots: Utility x2 13177 | -4/Factory | First assault squad dispatched 13369 | -4/Factory | Build established: Hacker-Gladiator 13418 | -4/Factory | Lost 10 parts (2p3n4u1w) 13555 | -4/Factory | Lost 4 parts (2p1u1w) 13565 | -4/Factory | Spotted B-86 Titan 13616 | -4/Factory | Lost 4 parts (1n3u) 13846 | -4/Factory | Build established: Wizard-Mutant 13884 | -4/Factory | Self-destructed Last Messages --------------- 13849_ >> FABRICATOR: Completed H-77 Assassin at (156,105). 13849_ Ripper follow-up attack on G-67 Veteran. 13850_ System corrupted: Energy discharge (-40). 13852_ G-67 Veteran misfires. 13852_ G-67 Veteran suffers critical hit (Smash). 13852_ Destroyed Flexi-carbon Leg. 13852_ G-67 Veteran system corrupted by crushing effect. 13852_ G-67 Veteran knocked back. 13864_ W-44 Eye sends out distress signal. 13865_ Acquired 20 matter. 13870_ Slug penetrates Wall. 13873_ Enh. Flexi-carbon Leg destroyed. 13873_ Critical hit (Meltdown: +360). 13873_ Penetrated by Slug. 13873_ Slug penetrates Wall. 13883_ Lgt. Antimatter Reactor destroyed. 13883_ Myomer Leg destroyed. Map ----- +----------------------------------------------------+ | # # """""" # #????????????????? | | # # % """"" # #????????????????? | | # + """""" # #????????????????? | | # # """""" + #??????????? #?? | | # # """""" # #?????????? #?? | | # " """""" # ########## #?? | | # " """""" # #?? | | ######## """""" # #?? | | #??????# % # #?? | | #######??????# % # """" """" #?? | | ?????????????###""+######## """" """" #?? | | ??????????????# " #??????# """" """" #?? | | ?????########## %# #??????# """" """" ### | | ?????# #??????# "" """" """" | | ?????# ^ BB####???# "F"" """" """" | | ?????# """" // BB;;;"#### """" """" """" | | ?????# "F " // | | ?????# / | | ??? / ################# | | ?? # #????????????????? | | ?? ??# % #????????????????? | | ?????####+############;;##;##+######?????????????? | | ??????????????????????# #?????????????? | | ??????????????????????# #?????????????? | | ??????????????????????# #?????????????? | | ??????????????????????# @ #?????????????? | | ??????????????????????# #?????????????? | | ??????????????????????# #?????????????? | | ??????????????????????# #?????????????? | | ??????????????????????# #?????????????? | | ??????????????????????# #?????????????? | | ??????????????????????# #?????????????? | | ??????????????????????# #?????????????? | | ??????????????????????# ] #?????????????? | | ??????????????????????##############?????????????? | | ?????????????????????????????????????????????????? | | ?????????????????????????????????????????????????? | | ?????????????????????????????????????????????????? | | ?????????????????????????????????????????????????? | | ?????????????????????????????????????????????????? | | ?????????????????????????????????????????????????? | | ?????????????????????????????????????????????????? | | ?????????????????????????????????????????????????? | | ?????????????????????????????????????????????????? | | ?????????????????????????????????????????????????? | | ?????????????????????????????????????????????????? | | ?????????????????????????????????????????????????? | | ?????????????????????????????????????????????????? | | ?????????????????????????????????????????????????? | | ?????????????????????????????????????????????????? | +----------------------------------------------------+ Best States ------------- Heat Dissipation 75 Energy Generation 45 Energy Capacity 600 Matter Stores 300 Matter Capacity 300 Sight Range 22 Robot Scan Range 16 Terrain Scan Density 10 Jamming Range 14 Armor Coverage 450 Resistance: KI 30 Propulsion Shielding 33 Melee Speed Boost 50 Evasion (%) 55 Targeting Accuracy 10 Melee Accuracy 8 Target Analysis 5 Recoil Reduction 2 Force Boost 20 Offensive Hacking 48 Defensive Hacking 12 Item Schematics ----------------- None Robot Schematics ------------------ None Fabricated ------------ Nothing Alien Tech Used ----------------- None Achievements -------------- None Challenges ------------ None Game ------ Seed SupersonicLatentCapacitor Manual? 0 Play Time 01:56:59 Cumulative 266.4 hours Start 2024.04.23 @ 17:32:04 End 2024.04.23 @ 19:42:30 Sessions 3 Manual Loads 0 Difficulty Rogue Special Mode None Game No. 172 Rogue 172 Adventurer 0 Explorer 0 Win Type - Total 5 Types 4/0/0/1/0/0/0/0/0 Lore% 51 Gallery% 72 Achievement% 58 Wizard Run 0 Options --------- Layout 1 ASCII 0 Keyboard 1 Movement Numpad Keybinds 0 Fullscreen 1 Font 32/SmallcapsGlow Map View 50x35 Zoom Use 0% Tactical HUD 1 Map Filters NONE Filters NONE Steam 1 RUN: 1b0bccd8-14bc-4d18-a25b-cfb294b3c434